bitfinex/quotes_BTCUSD_20250902
["timestamp","ask_amount","ask_price","bid_price","bid_amount"]
[1756782533104,0.65078113,110570.0,110560.0,0.07912462]
[1756782533349,0.65078113,110570.0,110560.0,0.08121462]
[1756782533642,0.18091361,110550.0,110540.0,0.0377063]
[1756782533847,0.64893386,110550.0,110540.0,0.07608465]
[1756782534330,0.64893386,110550.0,110540.0,0.07912465]
[1756782535097,0.64893386,110550.0,110540.0,0.08121465]
[1756782535330,0.64893386,110550.0,110540.0,0.07608465]
[1756782535544,0.64893386,110550.0,110540.0,0.03837835]
[1756782535765,0.64893386,110550.0,110540.0,0.00014094]
[1756782536264,0.47693386,110550.0,110540.0,0.03837835]
[1756782536476,0.47693386,110550.0,110540.0,0.08221465]
[1756782536689,0.64961386,110550.0,110540.0,0.08221465]
[1756782536893,0.64961386,110550.0,110540.0,0.08121465]
[1756782537238,0.65061386,110550.0,110540.0,0.08121465]
[1756782537441,0.47793386,110550.0,110540.0,0.17313064]
[1756782537667,0.64957386,110550.0,110540.0,0.17313064]
[1756782537881,0.47593386,110550.0,110540.0,0.17313064]
[1756782538103,0.47593386,110550.0,110540.0,0.17413064]
[1756782538323,0.47793386,110550.0,110540.0,0.17413064]
[1756782538548,0.47593386,110550.0,110540.0,0.17413064]
[1756782539150,0.47693386,110550.0,110540.0,0.17413064]
[1756782539587,0.001,110550.0,110540.0,0.35506062]
[1756782539805,0.001,110550.0,110540.0,0.52726062]
[1756782540308,0.001,110550.0,110540.0,0.34633064]
[1756782540309,0.47693386,110550.0,110540.0,0.34633064]
[1756782540528,0.47693386,110550.0,110540.0,0.52726062]
[1756782540815,0.18191361,110550.0,110540.0,0.52726062]
[1756782541048,0.001,110550.0,110540.0,0.52726062]
[1756782542365,0.001,110550.0,110540.0,0.35506062]
[1756782542606,0.47693386,110550.0,110540.0,0.52898062]
[1756782542826,0.47693386,110550.0,110540.0,0.34849064]
[1756782543256,0.47693386,110550.0,110540.0,0.13589323]
[1756782543463,0.47693386,110550.0,110540.0,0.34837064]
[1756782544130,0.18191361,110550.0,110540.0,0.34837064]
[1756782544342,0.47693386,110550.0,110540.0,0.17204064]
[1756782544555,0.47693386,110550.0,110540.0,0.34636064]
[1756782544971,0.47693386,110550.0,110540.0,0.34845064]
[1756782545434,0.47693386,110550.0,110540.0,0.16900064]
[1756782545646,0.63555839,110550.0,110540.0,0.16900064]
[1756782547329,0.18191361,110550.0,110540.0,0.16900064]
[1756782547573,0.63555839,110550.0,110540.0,0.16900064]
[1756782547810,1.02926364,110550.0,110540.0,0.07708465]
[1756782548023,0.57561886,110550.0,110540.0,0.03937835]
[1756782548231,1.02926364,110550.0,110540.0,0.03937835]
[1756782548671,0.97555839,110550.0,110540.0,0.03937835]
[1756782550042,0.52191361,110550.0,110540.0,0.03937835]
[1756782550318,0.97555839,110550.0,110540.0,0.03937835]
[1756782550530,1.14907839,110550.0,110540.0,0.03937835]
[1756782550733,0.69547361,110550.0,110540.0,0.04460835]
[1756782550942,1.14911839,110550.0,110540.0,0.03937835]
[1756782551831,1.14911839,110550.0,110540.0,0.04262835]
[1756782552031,1.14911839,110550.0,110540.0,0.03937835]
[1756782552668,1.14911839,110550.0,110540.0,0.04262835]
[1756782552882,1.14911839,110550.0,110540.0,0.04460835]
[1756782553067,0.52191361,110550.0,110540.0,0.04460835]
[1756782553322,0.69543361,110550.0,110540.0,0.04460835]
[1756782553560,1.14907839,110550.0,110540.0,0.04460835]
[1756782553768,1.14907839,110550.0,110540.0,0.04262835]
[1756782553992,1.14907839,110550.0,110540.0,0.03937835]
[1756782554419,1.16858727,110550.0,110540.0,0.03937835]
[1756782554811,1.18552214,110550.0,110540.0,0.03937835]
[1756782555012,1.19398957,110550.0,110540.0,0.03937835]
[1756782555224,1.19398957,110550.0,110540.0,0.03886097]
[1756782555959,1.19398957,110550.0,110540.0,0.00062356]
[1756782556169,1.75554438,110550.0,110540.0,0.00062356]
[1756782556436,6.30684438,110550.0,110540.0,1e-08]
[1756782556616,6.33753143,110550.0,110540.0,1e-08]
[1756782557092,0.52096272,110520.0,110510.0,0.11178372]
[1756782557323,1.1476875,110520.0,110510.0,0.07368726]
[1756782557560,1.1476875,110520.0,110510.0,0.11192467]
[1756782557794,1.18412703,110520.0,110510.0,0.11192467]
[1756782558019,1.18412703,110520.0,110510.0,0.03837836]
[1756782558236,1.27604302,110520.0,110510.0,0.03837836]
[1756782558448,1.25653664,110520.0,110510.0,0.03837836]
[1756782558662,1.23960349,110520.0,110510.0,0.03837836]
[1756782559108,0.73444964,110520.0,110510.0,0.03837836]
[1756782559361,1.18813442,110520.0,110510.0,0.04360836]
[1756782559573,0.69516272,110520.0,110510.0,0.08131466]
[1756782560023,0.69616272,110520.0,110510.0,0.08131466]
[1756782560268,0.52296272,110520.0,110510.0,0.08131466]
[1756782560480,0.18296272,110520.0,110510.0,0.35420974]
[1756782560652,0.18296272,110520.0,110510.0,0.17323065]
[1756782560875,0.18296272,110520.0,110510.0,0.35420974]
[1756782561081,0.18296272,110520.0,110510.0,0.17323065]
[1756782561639,0.18296272,110520.0,110510.0,0.35647197]
[1756782561865,0.18196272,110520.0,110510.0,0.35420974]
[1756782562034,0.18196272,110520.0,110510.0,0.17323065]
[1756782562241,0.18096272,110520.0,110510.0,0.17423065]
[1756782562656,0.18096272,110520.0,110510.0,0.17523065]
[1756782565948,0.6346075,110520.0,110510.0,0.17523065]
[1756782566117,0.6346075,110520.0,110510.0,0.08331466]
[1756782566336,0.6346075,110520.0,110510.0,0.17523065]
[1756782566764,0.6346075,110520.0,110510.0,0.17423065]
[1756782566970,0.6346075,110520.0,110510.0,0.35520974]
[1756782567177,0.18096272,110520.0,110510.0,0.35520974]
[1756782567382,0.18096272,110520.0,110510.0,0.17423065]
[1756782567811,0.6346075,110520.0,110510.0,0.17423065]
[1756782568186,0.6346075,110520.0,110510.0,0.17323065]
[1756782569004,0.6346075,110520.0,110510.0,0.17423065]
[1756782569968,0.18096272,110520.0,110510.0,0.17423065]
[1756782570189,0.6346075,110520.0,110510.0,0.17523065]
[1756782570559,0.6346075,110520.0,110510.0,0.35847197]
[1756782570791,0.6346075,110520.0,110510.0,0.35620974]
[1756782571261,0.18096272,110520.0,110510.0,0.35620974]
[1756782571472,0.6346075,110520.0,110510.0,0.35620974]
[1756782571684,0.18096272,110520.0,110510.0,0.35620974]
[1756782571933,0.63459112,110530.0,110520.0,0.25690643]
[1756782572136,0.63459112,110530.0,110520.0,0.52517242]
[1756782573080,0.63459112,110530.0,110520.0,0.1730897]
[1756782573800,0.18094634,110530.0,110520.0,0.1730897]
[1756782574011,0.63459112,110530.0,110520.0,0.1730897]
[1756782574616,0.63459112,110530.0,110520.0,0.1678597]
[1756782575190,0.63459112,110530.0,110520.0,0.1708297]
[1756782575862,0.18094634,110530.0,110520.0,0.1708297]
[1756782576206,0.63459112,110530.0,110520.0,0.1708297]
[1756782577838,0.63459112,110530.0,110520.0,0.1728197]
[1756782578046,0.18094634,110530.0,110520.0,0.1728197]
[1756782578301,0.63459112,110530.0,110520.0,0.1728197]
[1756782578726,0.63459112,110530.0,110520.0,0.1678597]
[1756782578931,0.63459112,110530.0,110520.0,0.1708297]
[1756782579374,0.80635112,110530.0,110520.0,0.1728197]
[1756782580074,0.18094634,110530.0,110520.0,0.1728197]
[1756782580288,0.80635112,110530.0,110520.0,0.1728197]
[1756782580495,0.63459112,110530.0,110520.0,0.1728197]
[1756782580697,0.80619112,110530.0,110520.0,0.1728197]
[1756782582379,0.63459112,110530.0,110520.0,0.35378242]
[1756782583244,1.15005113,110540.0,110530.0,0.25689005]
[1756782583493,1.15005113,110540.0,110530.0,0.1728197]
[1756782583713,1.15005113,110540.0,110530.0,0.1678597]
[1756782584687,1.60369591,110540.0,110530.0,0.1728197]
[1756782588247,1.60369591,110540.0,110530.0,0.1708297]
[1756782589346,1.62324378,110540.0,110530.0,0.1708297]
[1756782589587,1.60369591,110540.0,110530.0,0.1708297]
[1756782589852,1.6232436,110540.0,110530.0,0.1708297]
[1756782591019,1.18590919,110540.0,110530.0,0.07594371]
[1756782591477,0.52094634,110530.0,110520.0,0.07594371]
[1756782591699,1.16457881,110530.0,110520.0,0.07594371]
[1756782591940,1.16457881,110530.0,110510.0,0.07608466]
[1756782591941,0.52096272,110520.0,110510.0,0.07608466]
[1756782592168,1.1449675,110520.0,110510.0,0.07608466]
[1756782592413,1.1449675,110520.0,110510.0,0.03837836]
[1756782592414,1.16452027,110520.0,110510.0,0.03837836]
[1756782592638,1.16452027,110520.0,110510.0,0.08104466]
[1756782593606,1.16452027,110520.0,110510.0,0.07608466]
[1756782594036,1.16452027,110520.0,110510.0,0.07905466]
[1756782594464,1.16452027,110520.0,110510.0,0.07608466]
[1756782594961,1.16452027,110520.0,110510.0,0.07905466]
[1756782595306,1.20448714,110520.0,110510.0,0.07905466]
[1756782595569,0.54051549,110520.0,110510.0,0.17296065]
[1756782595782,1.1448875,110520.0,110510.0,0.17296065]
[1756782595994,1.1447675,110520.0,110510.0,0.35393974]
[1756782596202,0.9746075,110520.0,110510.0,0.35393974]
[1756782597448,0.9746075,110520.0,110510.0,0.35493974]
[1756782597632,0.79364478,110520.0,110510.0,0.35493974]
[1756782598037,0.9746075,110520.0,110510.0,0.35493974]
[1756782598484,0.9746075,110520.0,110510.0,0.52497974]
[1756782598738,0.9746075,110520.0,110510.0,0.52597974]
[1756782600650,0.45364478,110520.0,110510.0,0.52597974]
[1756782600863,0.6346075,110520.0,110510.0,0.17496065]
[1756782601353,0.6346075,110520.0,110510.0,0.35593974]
[1756782602408,0.45364478,110520.0,110510.0,0.35593974]
[1756782602868,0.18096272,110520.0,110510.0,0.52529974]
[1756782603134,0.69018634,110530.0,110520.0,0.03823741]
[1756782603374,0.69018634,110530.0,110520.0,0.1321434]
[1756782603597,0.69018634,110530.0,110520.0,0.1351134]
[1756782603836,0.69018634,110530.0,110520.0,0.1301534]
[1756782604071,0.69018634,110530.0,110520.0,0.1351134]
[1756782604291,1.14383112,110530.0,110520.0,0.1351134]
[1756782604509,1.14383112,110530.0,110520.0,0.1331234]
[1756782604719,1.14383112,110530.0,110520.0,0.1351134]
[1756782607559,1.28086274,110530.0,110520.0,0.1351134]
[1756782608213,1.28094274,110530.0,110520.0,0.1351134]
[1756782608434,0.98560454,110530.0,110520.0,0.1351134]
[1756782609544,1.25726324,110530.0,110520.0,0.1351134]
[1756782612275,1.08794324,110530.0,110520.0,0.35378242]
[1756782612498,0.52999113,110540.0,110530.0,0.0377063]
[1756782612753,1.26574803,110540.0,110530.0,0.35399604]
[1756782613180,1.09698803,110540.0,110530.0,0.52275604]
[1756782613618,1.16667755,110550.0,110540.0,0.07594371]
[1756782613619,0.18091361,110550.0,110540.0,0.07594371]
[1756782613834,0.28349845,110550.0,110540.0,0.35097968]
[1756782614275,0.46441206,110550.0,110540.0,0.35097968]
[1756782614733,0.28349845,110550.0,110540.0,0.35097968]
[1756782614940,0.28549845,110550.0,110540.0,0.35097968]
[1756782615353,0.28849845,110550.0,110540.0,0.35097968]
[1756782615562,0.46641206,110550.0,110540.0,0.35097968]
[1756782616210,0.46441206,110550.0,110540.0,0.35097968]
[1756782616426,0.28349845,110550.0,110540.0,0.35097968]
[1756782616705,0.46441206,110550.0,110540.0,0.35097968]
[1756782617815,0.5669969,110550.0,110540.0,0.35097968]
[1756782618032,0.46441206,110550.0,110540.0,0.35097968]
[1756782618246,0.28349845,110550.0,110540.0,0.35097968]
[1756782618467,0.46441206,110550.0,110540.0,0.35097968]
[1756782619126,0.74791051,110550.0,110540.0,0.35097968]
[1756782619563,0.28349845,110550.0,110540.0,0.35097968]
[1756782620872,0.18089893,110560.0,110550.0,0.18091361]
[1756782621092,0.74789583,110560.0,110550.0,0.48405701]
[1756782621783,0.18089893,110560.0,110550.0,0.48405701]
[1756782622004,0.74789583,110560.0,110550.0,0.48405701]
[1756782622223,0.74889583,110560.0,110550.0,0.48419796]
[1756782622872,0.74989583,110560.0,110550.0,0.48419796]
[1756782623641,0.74989583,110560.0,110550.0,0.13340435]
[1756782623830,0.74989583,110560.0,110550.0,0.48379796]
[1756782624402,0.74989583,110560.0,110550.0,0.51850426]
[1756782624805,0.18289893,110560.0,110550.0,0.51850426]
[1756782624995,0.5689969,110560.0,110550.0,0.51850426]
[1756782625479,0.18289725,110560.0,110550.0,0.51850426]
[1756782625737,0.5689969,110560.0,110550.0,0.51850426]
[1756782627264,0.74989415,110560.0,110550.0,0.51850426]
[1756782627693,0.5689969,110560.0,110550.0,0.51850426]
[1756782629632,0.74989415,110560.0,110550.0,0.51850426]
[1756782630042,0.5689969,110560.0,110550.0,0.51850426]
[1756782630264,0.002,110560.0,110550.0,0.51850426]
[1756782630482,0.74989415,110560.0,110550.0,0.51850426]
[1756782631104,0.5669969,110560.0,110550.0,0.51850426]
[1756782631938,0.74789415,110560.0,110550.0,0.51778426]
[1756782632420,0.4643957,110560.0,110550.0,0.51778426]
[1756782632634,0.74789415,110560.0,110550.0,0.51778426]
[1756782633738,0.18089725,110560.0,110550.0,0.51778426]
[1756782633948,0.74789415,110560.0,110550.0,0.51778426]
[1756782636936,0.74789415,110560.0,110550.0,0.33104065]
[1756782637295,0.74789415,110560.0,110550.0,0.51686426]
[1756782639908,0.74789415,110560.0,110550.0,0.51491426]
[1756782640119,0.74789415,110560.0,110550.0,0.33400065]
[1756782640933,1.0313926,110560.0,110550.0,0.33104065]
[1756782641163,1.3713926,110560.0,110550.0,0.07308466]
[1756782641606,1.39091781,110560.0,110550.0,0.07308466]
[1756782641810,1.47839129,110560.0,110550.0,0.07308466]
[1756782642104,1.39091781,110560.0,110550.0,0.07308466]
[1756782642311,1.55631781,110560.0,110550.0,0.07308466]
[1756782642746,1.83981626,110560.0,110550.0,0.07308466]
[1756782642970,2.55353447,110560.0,110550.0,0.00014095]
[1756782643194,2.61318164,110560.0,110550.0,0.00014095]
[1756782643637,1.74170747,110560.0,110550.0,0.00014095]
[1756782643848,1.6820603,110560.0,110550.0,0.00014095]
[1756782644066,1.66510016,110560.0,110550.0,0.00014095]
[1756782644277,1.67569949,110560.0,110550.0,0.00014095]
[1756782645655,1.67565949,110560.0,110550.0,0.03484725]
[1756782645858,1.28949942,110560.0,110550.0,0.07604466]
[1756782646063,0.03648527,110560.0,110550.0,0.16991065]
[1756782646279,0.28349845,110560.0,110550.0,0.35082426]
[1756782646694,0.5669969,110560.0,110550.0,0.35082426]
[1756782646909,0.74789415,110560.0,110550.0,0.35082426]
[1756782647358,0.4643957,110560.0,110550.0,0.35082426]
[1756782647809,0.28349845,110560.0,110550.0,0.35282426]
[1756782648035,0.18992763,110570.0,110550.0,0.35282426]
[1756782648036,0.18088359,110570.0,110550.0,0.35282426]
[1756782648295,0.46494729,110580.0,110570.0,0.25382459]
[1756782648575,0.18137121,110580.0,110570.0,0.25873459]
[1756782648780,0.74836811,110580.0,110570.0,0.25873459]
[1756782649500,0.28400513,110580.0,110570.0,0.25873459]
[1756782649899,0.74836811,110580.0,110570.0,0.35065058]
[1756782650142,0.28400513,110580.0,110570.0,0.35065058]
[1756782650804,0.00050668,110580.0,110570.0,0.35065058]
[1756782651016,0.28400513,110580.0,110570.0,0.35065058]
[1756782651446,0.18137121,110580.0,110570.0,0.35065058]
[1756782651662,0.28400513,110580.0,110570.0,0.35065058]
[1756782652475,0.28400513,110580.0,110570.0,0.35265058]
[1756782653101,0.28400513,110580.0,110570.0,0.35065058]
[1756782653518,0.28400513,110580.0,110570.0,0.35465058]
[1756782653728,0.74836811,110580.0,110570.0,0.35665058]
[1756782653945,0.74836811,110580.0,110570.0,0.1757697]
[1756782654163,0.74836811,110580.0,110570.0,0.3388097]
[1756782654373,0.74836811,110580.0,110570.0,0.52169058]
[1756782654938,0.18137121,110580.0,110570.0,0.52169058]
[1756782655358,0.74836811,110580.0,110570.0,0.52169058]
[1756782655576,0.74836811,110580.0,110570.0,0.3408097]
[1756782655788,0.74836811,110580.0,110570.0,0.52169058]
[1756782655999,0.74836811,110580.0,110570.0,0.3408097]
[1756782656609,0.74836811,110580.0,110570.0,0.1757697]
[1756782656817,0.74836811,110580.0,110570.0,0.3388597]
[1756782657231,0.74836811,110580.0,110570.0,0.3408097]
[1756782657578,0.74836811,110580.0,110570.0,0.3388097]
[1756782657842,0.74836811,110580.0,110570.0,0.3408097]
[1756782658044,0.74836811,110580.0,110570.0,0.3388597]
[1756782658688,0.74836811,110580.0,110570.0,0.3348597]
[1756782658898,0.74836811,110580.0,110570.0,0.3368097]
[1756782659100,0.74836811,110580.0,110570.0,0.3388097]
[1756782659301,0.74836811,110580.0,110570.0,0.3368597]
[1756782660042,0.74836811,110580.0,110570.0,0.3388097]
[1756782660265,0.74836811,110580.0,110570.0,0.1688597]
[1756782660485,1.53690656,110580.0,110570.0,0.1688597]
[1756782660702,0.68641121,110580.0,110570.0,0.1688597]
[1756782661155,1.25340811,110580.0,110570.0,0.1688597]
[1756782661367,1.25340811,110580.0,110570.0,0.1648597]
[1756782661573,1.53690656,110580.0,110570.0,0.1648597]
[1756782661796,1.57721825,110580.0,110570.0,0.1668597]
[1756782662223,1.2937198,110580.0,110570.0,0.1668597]
[1756782662631,0.52137121,110580.0,110570.0,0.1668597]
[1756782662738,1.25340811,110580.0,110570.0,0.1717697]
[1756782662959,1.08836811,110580.0,110570.0,0.1717697]
[1756782664640,1.08836811,110580.0,110570.0,0.35265058]
[1756782664842,0.74836811,110580.0,110570.0,0.35265058]
[1756782665050,0.74836811,110580.0,110570.0,0.1717697]
[1756782665921,0.74836811,110580.0,110570.0,0.35265058]
[1756782666801,0.74836811,110580.0,110570.0,0.1717697]
[1756782667457,0.74836811,110580.0,110570.0,0.35265058]
[1756782667615,0.46455552,110580.0,110570.0,0.35265058]
[1756782668018,0.46455552,110580.0,110570.0,0.1717697]
[1756782669022,0.46455552,110580.0,110570.0,0.35265058]
[1756782669238,0.00050668,110580.0,110570.0,0.35265058]
[1756782670537,0.00050668,110580.0,110570.0,0.42221058]
[1756782670746,0.00050668,110580.0,110570.0,0.44939158]
[1756782671564,0.00050668,110580.0,110570.0,0.61439158]
[1756782675614,0.00050668,110580.0,110570.0,0.44939158]
[1756782675836,0.46455552,110580.0,110570.0,0.39328329]
[1756782676068,0.46455552,110580.0,110570.0,0.61240158]
[1756782676295,0.28369099,110580.0,110570.0,0.61452158]
[1756782676510,0.46455552,110580.0,110570.0,0.61452158]
[1756782676738,0.74773983,110580.0,110570.0,0.15876329]
[1756782676962,0.74773983,110580.0,110570.0,0.3318197]
[1756782678724,0.74773983,110580.0,110570.0,0.1668597]
[1756782678986,1.08773983,110580.0,110570.0,0.1668597]
[1756782679408,1.10725794,110580.0,110570.0,0.1668597]
[1756782679629,1.10725794,110580.0,110570.0,0.07494371]
[1756782680132,1.27221794,110580.0,110570.0,0.07494371]
[1756782681481,1.10725794,110580.0,110570.0,0.07494371]
[1756782681689,1.27221794,110580.0,110570.0,0.07494371]
[1756782681937,1.10725794,110580.0,110570.0,0.07494371]
[1756782682162,0.52137121,110580.0,110570.0,0.1721897]
[1756782682381,0.80455552,110580.0,110570.0,0.1700697]
[1756782682623,0.80455552,110580.0,110570.0,0.1668597]
[1756782682841,0.80455552,110580.0,110570.0,0.1721897]
[1756782683082,0.80455552,110580.0,110570.0,0.1700697]
[1756782683306,1.08773983,110580.0,110570.0,0.1668597]
[1756782683953,0.52137121,110580.0,110570.0,0.1668597]
[1756782684182,1.08773983,110580.0,110570.0,0.3371497]
[1756782684610,0.80455552,110580.0,110570.0,0.3371497]
[1756782685126,1.08773983,110580.0,110570.0,0.1668597]
[1756782685354,1.08773983,110580.0,110570.0,0.07494371]
[1756782685565,1.10724531,110580.0,110570.0,0.07494371]
[1756782685783,1.1991613,110580.0,110570.0,0.07494371]
[1756782686006,6.10724531,110580.0,110570.0,1e-08]
[1756782686524,6.13443731,110580.0,110570.0,0.03823742]
[1756782687367,5.56806869,110580.0,110570.0,0.03823742]
[1756782687577,6.29935731,110580.0,110570.0,0.03823742]
[1756782688019,6.29917644,110580.0,110570.0,0.03823742]
[1756782688242,6.29844391,110580.0,110570.0,0.03823742]
[1756782689883,6.27125191,110580.0,110570.0,1e-08]
[1756782690267,6.27125191,110580.0,110570.0,0.03823742]
[1756782691997,6.27125191,110580.0,110570.0,1e-08]
[1756782691998,6.34498763,110580.0,110570.0,1e-08]
[1756782692204,6.27125191,110580.0,110570.0,1e-08]
[1756782692404,6.55443622,110580.0,110570.0,1e-08]
[1756782692801,6.27125191,110580.0,110570.0,1e-08]
[1756782693046,0.52088088,110570.0,110560.0,0.07388271]
[1756782693257,5.80406519,110570.0,110560.0,0.07388271]
[1756782693456,0.80406519,110570.0,110560.0,0.07388271]
[1756782693654,0.96894519,110570.0,110560.0,0.07388271]
[1756782694762,0.96894519,110570.0,110560.0,0.07709271]
[1756782694989,0.80406519,110570.0,110560.0,0.07921271]
[1756782695415,0.80406519,110570.0,110560.0,0.08021271]
[1756782695632,0.80506519,110570.0,110560.0,0.08021271]
[1756782696256,0.80406519,110570.0,110560.0,0.07921271]
[1756782696371,0.96894519,110570.0,110560.0,0.08121271]
[1756782696794,0.80406519,110570.0,110560.0,0.1731287]
[1756782697586,0.68533781,110580.0,110570.0,0.07294371]
[1756782697795,0.80364212,110580.0,110570.0,0.1648597]
[1756782698026,0.96852212,110580.0,110570.0,0.1699597]
[1756782698227,0.80364212,110580.0,110570.0,0.1699597]
[1756782698439,0.96852212,110580.0,110570.0,0.1699597]
[1756782698877,1.25270643,110580.0,110570.0,0.1678497]
[1756782699081,1.25270643,110580.0,110570.0,0.1699597]
[1756782699543,1.25270643,110580.0,110570.0,0.1709597]
[1756782699754,0.68633781,110580.0,110570.0,0.1709597]
[1756782699954,0.96952212,110580.0,110570.0,0.1709597]
[1756782700161,0.80464212,110580.0,110570.0,0.1709597]
[1756782701384,0.52145781,110580.0,110570.0,0.1709597]
[1756782701595,0.80464212,110580.0,110570.0,0.1709597]
[1756782702070,0.96948212,110580.0,110570.0,0.1709597]
[1756782702288,1.25266643,110580.0,110570.0,0.1688497]
[1756782702743,1.25266643,110580.0,110570.0,0.1311534]
[1756782702962,1.25266643,110580.0,110570.0,0.1658597]
[1756782703179,1.25266643,110580.0,110570.0,0.1688497]
[1756782703634,1.25266643,110580.0,110570.0,0.1709597]
[1756782704359,1.25266643,110580.0,110570.0,0.1688497]
[1756782704566,1.25266643,110580.0,110570.0,0.1709597]
[1756782705525,1.27218566,110580.0,110570.0,0.07394371]
[1756782706551,1.27218566,110580.0,110570.0,0.07693371]
[1756782706956,1.27218566,110580.0,110570.0,0.07394371]
[1756782707509,0.70581704,110580.0,110570.0,0.07394371]
[1756782707733,1.27218566,110580.0,110570.0,0.07904371]
[1756782708213,0.54097704,110580.0,110570.0,0.07904371]
[1756782708444,1.27210566,110580.0,110570.0,0.07693371]
[1756782708666,1.27210566,110580.0,110570.0,0.07904371]
[1756782712036,1.10734566,110580.0,110570.0,0.07904371]
[1756782712256,0.98892135,110580.0,110570.0,0.1709597]
[1756782712683,0.80464212,110580.0,110570.0,0.1709597]
[1756782712886,0.80464212,110580.0,110570.0,0.1688497]
[1756782713100,1.08782643,110580.0,110570.0,0.1709597]
[1756782713850,0.52145781,110580.0,110570.0,0.1709597]
[1756782714066,1.10735666,110580.0,110570.0,0.1709597]
[1756782714294,0.54098804,110580.0,110570.0,0.1709597]
[1756782714542,1.10735666,110580.0,110570.0,0.1709597]
[1756782714777,1.27207666,110580.0,110570.0,0.1709597]
[1756782716396,1.27207666,110580.0,110570.0,0.1688497]
[1756782716851,0.54098804,110580.0,110570.0,0.1709597]
[1756782717113,0.52145781,110580.0,110570.0,0.35184058]
[1756782717333,0.80464212,110580.0,110570.0,0.1709597]
[1756782721070,0.80464212,110580.0,110570.0,0.07693371]
[1756782721264,1.27199976,110580.0,110570.0,0.07394371]
[1756782722110,1.27199976,110580.0,110570.0,0.07904371]
[1756782723831,0.70563114,110580.0,110570.0,0.07904371]
[1756782724168,1.27199976,110580.0,110570.0,0.07904371]
[1756782726029,1.27199976,110580.0,110570.0,0.07394371]
[1756782726459,0.70563114,110580.0,110570.0,0.07701371]
[1756782726678,1.27199976,110580.0,110570.0,0.07911371]
[1756782727342,1.27199976,110580.0,110570.0,0.1710297]
[1756782727343,0.82417545,110580.0,110570.0,0.1710297]
[1756782727564,1.10739784,110580.0,110570.0,0.1710297]
[1756782730165,1.10739784,110580.0,110570.0,0.1689297]
[1756782730370,0.54099114,110580.0,110570.0,0.1689297]
[1756782730487,1.10739784,110580.0,110570.0,0.1710297]
[1756782731377,1.27191784,110580.0,110570.0,0.1658597]
[1756782731572,1.55512119,110580.0,110570.0,0.07394371]
[1756782732192,1.27191784,110580.0,110570.0,0.07394371]
[1756782732567,1.27191784,110580.0,110570.0,0.07701371]
[1756782733955,1.55512119,110580.0,110570.0,0.07394371]
[1756782734827,1.3691066,110580.0,110570.0,0.07394371]
[1756782735033,1.54997113,110580.0,110570.0,0.07394371]
[1756782736030,1.57760048,110580.0,110570.0,0.07394371]
[1756782736402,1.41308048,110580.0,110570.0,0.07394371]
[1756782736605,1.57752048,110580.0,110570.0,0.07394371]
[1756782737610,1.86072383,110580.0,110570.0,0.001]
[1756782737823,7.93208633,110580.0,110570.0,0.001]
[1756782738051,7.95302515,110580.0,110570.0,0.001]
[1756782738474,8.04494114,110580.0,110570.0,0.001]
[1756782739325,8.04494114,110580.0,110570.0,1e-08]
[1756782739536,8.04875996,110580.0,110570.0,1e-08]
[1756782739752,8.07638931,110580.0,110570.0,1e-08]
[1756782740008,0.18089725,110560.0,110550.0,0.00014095]
[1756782740234,1.90720398,110560.0,110550.0,0.00014095]
[1756782740450,1.95178702,110560.0,110550.0,0.00014095]
[1756782741131,1.65162998,110560.0,110550.0,0.00014095]
[1756782741550,1.65262998,110560.0,110550.0,0.00014095]
[1756782741755,1.69381245,110560.0,110550.0,0.00014095]
[1756782742834,2.65627731,110560.0,110550.0,0.00014095]
[1756782743261,7.65627731,110560.0,110550.0,0.00014095]
[1756782743468,7.7481933,110560.0,110550.0,0.00014095]
[1756782743689,7.65627731,110560.0,110550.0,0.00014095]
[1756782744361,6.64226726,110560.0,110550.0,0.00014095]
[1756782744584,6.80662726,110560.0,110550.0,0.00014095]
[1756782744997,7.11425897,110560.0,110550.0,0.00014095]
[1756782745876,7.15091529,110560.0,110550.0,0.00014095]
[1756782746103,0.52092998,110540.0,110530.0,0.04028941]
[1756782746282,1.53490003,110540.0,110530.0,0.00219299]
[1756782746530,1.56252938,110540.0,110530.0,0.0404304]
[1756782747235,1.56252938,110540.0,110530.0,0.0414304]
[1756782747448,1.39816938,110540.0,110530.0,0.0466004]
[1756782747675,1.56248938,110540.0,110530.0,0.0466004]
[1756782748105,1.56248938,110540.0,110530.0,0.0486004]
[1756782748523,1.56248938,110540.0,110530.0,0.0466004]
[1756782748940,1.56248938,110540.0,110530.0,0.0456004]
[1756782750859,1.39816938,110540.0,110530.0,0.0456004]
[1756782751091,1.53486003,110540.0,110530.0,0.0456004]
[1756782751354,0.18094634,110530.0,110520.0,1e-08]
[1756782751573,0.18094634,110530.0,110510.0,0.0272]
[1756782751574,0.52096272,110520.0,110510.0,0.0272]
[1756782751795,1.53485277,110520.0,110510.0,0.0293]
[1756782752012,1.53485277,110520.0,110510.0,0.0021]
[1756782752272,1.54395504,110520.0,110510.0,0.00517]
[1756782752700,0.69434499,110520.0,110510.0,0.0398763]
[1756782752928,1.26075169,110520.0,110510.0,0.0428763]
[1756782753380,1.09647169,110520.0,110510.0,0.0448763]
[1756782753598,1.57158439,110520.0,110510.0,0.005]
[1756782753814,1.37967504,110520.0,110510.0,0.01017]
[1756782754029,0.69434499,110520.0,110510.0,0.01017]
[1756782754243,1.54395504,110520.0,110510.0,0.01017]
[1756782754683,1.54395504,110520.0,110510.0,0.005]
[1756782754903,1.54395504,110520.0,110510.0,0.00717]
[1756782755553,1.54395504,110520.0,110510.0,0.00517]
[1756782755765,1.09747169,110520.0,110510.0,0.0398763]
[1756782756003,1.30812964,110520.0,110510.0,0.0398763]
[1756782756223,1.30712964,110520.0,110510.0,0.0398763]
[1756782756459,1.68224898,110520.0,110510.0,0.0408763]
[1756782756685,1.30712964,110520.0,110510.0,0.0408763]
[1756782757696,1.30712964,110520.0,110510.0,0.0428763]
[1756782757914,1.14284964,110520.0,110510.0,0.0428763]
[1756782758102,1.26543999,110520.0,110510.0,0.0428763]
[1756782758638,1.26539999,110520.0,110510.0,0.0428763]
[1756782758851,0.69899329,110520.0,110510.0,0.0428763]
[1756782759100,1.26539999,110520.0,110510.0,0.0428763]
[1756782762221,1.54860334,110520.0,110510.0,0.0377063]
[1756782762936,1.54860334,110520.0,110510.0,0.0367063]
[1756782763541,1.54860334,110520.0,110510.0,0.0399363]
[1756782763990,1.54860334,110520.0,110510.0,0.0418963]
[1756782764423,1.54860334,110520.0,110510.0,0.0398963]
[1756782765556,1.54860334,110520.0,110510.0,0.0379363]
[1756782765779,1.58886358,110520.0,110510.0,0.0379363]
[1756782766008,0.73925353,110520.0,110510.0,0.0398963]
[1756782766217,1.30566023,110520.0,110510.0,0.0398963]
[1756782766432,0.75874308,110520.0,110510.0,0.0398963]
[1756782766647,1.60835313,110520.0,110510.0,0.0398963]
[1756782766876,1.32506978,110520.0,110510.0,0.0398963]
[1756782768636,1.34912444,110520.0,110510.0,0.0398963]
[1756782768824,1.32506978,110520.0,110510.0,0.0398963]
[1756782770495,1.32506978,110520.0,110510.0,0.0379363]
[1756782770931,0.25454308,110520.0,110510.0,0.13181229]
[1756782771161,0.47326834,110520.0,110510.0,0.31279138]
[1756782771355,0.47326834,110520.0,110510.0,0.33999238]